bitfinex-derivatives/quotes_ETHF0:USTF0_20250212
["timestamp","ask_amount","ask_price","bid_price","bid_amount"]
[1739329977305,4.52670821,2580.5,2579.4,45.2005]
[1739329977306,3.2078,2579.9,2579.4,45.2005]
[1739329977495,4.52670821,2580.5,2579.4,4.4005]
[1739329977496,3.2078,2579.6,2579.4,4.4005]
[1739329977700,3.2078,2580.0,2579.4,4.4005]
[1739329977997,3.2078,2579.7,2579.4,4.4005]
[1739329978194,3.2078,2579.7,2579.3,45.1709]
[1739329978391,3.2078,2579.7,2579.2,20.286]
[1739329978598,3.2078,2580.0,2579.2,20.286]
[1739329978796,3.2078,2579.7,2579.2,20.286]
[1739329978999,3.2078,2580.0,2579.2,23.4938]
[1739329979203,4.52670821,2580.5,2579.5,3.2078]
[1739329979506,3.2078,2580.3,2579.6,8.8611]
[1739329979999,0.00580821,2580.5,2580.1,3.2078]
[1739329980201,0.00580821,2580.5,2579.8,3.2078]
[1739329980401,3.2078,2580.2,2579.9,0.00632055]
[1739329984125,0.00580821,2580.5,2579.9,0.00632055]
[1739329984428,3.2078,2580.4,2580.0,40.8]
[1739329984917,3.2078,2580.4,2579.9,0.00632055]
[1739329985119,3.2078,2580.1,2579.9,0.00632055]
[1739329985517,0.00580821,2580.5,2579.9,3.21412055]
[1739329986126,0.00580821,2580.5,2579.9,7.56772055]
[1739329987226,0.00580821,2580.5,2579.9,3.21412055]
[1739329987227,3.2078,2580.4,2579.9,3.21412055]
[1739329987819,3.2078,2580.1,2579.9,0.00632055]
[1739329990526,0.00580821,2580.5,2580.0,3.2078]
[1739329990724,0.00580821,2580.5,2580.3,3.2078]
[1739329990925,0.00580821,2580.5,2580.4,4.2779]
[1739329991732,3.2078,2581.0,2580.4,4.2779]
[1739329991935,3.2078,2581.3,2580.6,3.2078]
[1739329992829,3.2078,2581.4,2580.5,3.2078]
[1739329993027,3.2078,2581.1,2580.5,3.2078]
[1739329993229,0.00580821,2581.2,2580.5,44.0078]
[1739329995125,0.00580821,2581.2,2580.8,3.2078]
[1739329995334,0.00580821,2581.2,2580.5,44.0078]
[1739329995632,0.00580821,2581.2,2580.8,3.2078]
[1739329995936,3.2078,2581.1,2580.5,44.0078]
[1739329996228,3.2078,2581.1,2580.5,3.2078]
[1739329999125,0.00580821,2581.2,2580.5,3.2078]
[1739329999428,0.00580821,2581.2,2580.8,3.2078]
[1739330000028,0.00580821,2581.2,2580.5,3.2078]
[1739330002732,3.2078,2581.1,2580.5,3.2078]
[1739330004427,0.00580821,2581.2,2580.5,3.2078]
[1739330004635,3.2078,2581.1,2580.5,3.2078]
[1739330007031,0.00580821,2581.2,2580.5,3.2078]
[1739330007426,0.00580821,2581.2,2580.4,4.2779]
[1739330007427,0.00580821,2581.2,2580.8,3.2078]
[1739330007627,0.00580821,2581.2,2580.5,3.2078]
[1739330008329,3.2078,2581.1,2580.5,3.2078]
[1739330009129,3.2078,2580.8,2580.4,4.2779]
[1739330014234,4.2299,2581.1,2580.4,4.2779]
[1739330014235,7.4377,2581.1,2580.4,4.2779]
[1739330019142,3.2078,2581.1,2580.4,4.2779]
[1739330019537,3.2078,2581.1,2580.6,3.2078]
[1739330020136,3.2078,2580.8,2580.4,4.2779]
[1739330021243,0.00580821,2581.2,2580.7,3.2078]
[1739330021445,0.00580821,2581.2,2581.1,3.2078]
[1739330028144,3.2078,2581.8,2581.1,3.2078]
[1739330028350,3.2078,2581.8,2581.4,3.2078]
[1739330028938,7.8566,2582.1,2581.4,3.2078]
[1739330029140,0.00580821,2581.9,2581.4,3.2078]
[1739330029739,0.00580821,2581.9,2581.5,40.8]
[1739330030238,0.00580821,2581.9,2581.4,3.2078]
[1739330030650,0.00580821,2581.9,2581.5,40.8]
[1739330031245,0.00580821,2581.9,2581.7,3.2078]
[1739330031851,0.00580821,2581.9,2581.5,40.8]
[1739330032949,0.00580821,2581.9,2581.4,3.2078]
[1739330033149,3.2078,2581.8,2581.3,0.00580821]
[1739330033551,0.00580821,2581.9,2581.3,0.00580821]
[1739330034255,0.00580821,2581.9,2581.4,3.2078]
[1739330035148,3.2078,2581.8,2581.3,0.00580821]
[1739330035452,4.4892,2581.8,2581.3,0.00580821]
[1739330035660,3.21360821,2581.9,2581.3,0.00580821]
[1739330035959,0.00580821,2581.9,2581.3,0.00580821]
[1739330036259,0.00580821,2581.9,2581.4,3.2078]
[1739330036862,3.21360821,2581.9,2581.3,0.00580821]
[1739330037260,3.2078,2581.6,2581.3,0.00580821]
[1739330038660,4.3919,2581.5,2581.3,0.00580821]
[1739330039860,10.3919,2581.5,2581.3,0.00580821]
[1739330040055,10.3919,2581.5,2580.5,1.947]
[1739330040366,3.2078,2580.8,2580.6,40.8]
[1739330040759,3.2078,2580.8,2580.4,4.2515]
[1739330041467,3.2078,2581.1,2580.5,40.8]
[1739330043752,3.2078,2581.1,2580.5,44.0078]
[1739330045853,3.2078,2581.4,2580.5,44.0078]
[1739330046058,3.2078,2581.7,2580.8,3.2078]
[1739330046257,3.2078,2581.7,2580.8,5.1508]
[1739330046458,3.2078,2581.7,2581.1,3.2078]
[1739330046659,3.2078,2581.7,2581.2,8.7912]
[1739330046861,3.2078,2581.7,2581.3,40.8]
[1739330047265,3.2078,2581.7,2581.2,8.7912]
[1739330047460,3.2078,2581.7,2581.2,4.479]
[1739330047763,3.2078,2581.3,2580.8,1.943]
[1739330049962,0.00580821,2581.9,2581.2,3.2078]
[1739330050158,0.00580821,2581.9,2581.5,3.2078]
[1739330050562,0.00580821,2581.9,2581.6,40.8]
[1739330051166,8.8836,2582.6,2581.8,3.2078]
[1739330051356,7.6505,2582.6,2582.0,3.2078]
[1739330052069,3.2078,2582.6,2582.0,3.2078]
[1739330052262,3.2078,2582.9,2582.1,6.187]
[1739330052464,0.00580821,2582.6,2582.3,3.2078]
[1739330053869,3.2078,2583.3,2582.3,3.2078]
[1739330054069,3.2078,2583.5,2582.3,3.2078]
[1739330054559,3.2078,2583.2,2582.3,3.2078]
[1739330054972,0.00580821,2583.0,2582.3,3.2078]
[1739330055667,0.00580821,2583.0,2582.6,3.2078]
[1739330056063,0.00580821,2583.0,2582.7,40.8]
[1739330056471,0.00580821,2583.0,2582.6,3.2078]
[1739330057968,0.00580821,2583.0,2582.7,1.942]
[1739330058561,0.00580821,2583.0,2582.8,4.4687]
[1739330059169,0.00580821,2583.0,2582.8,8.7459]
[1739330059768,3.2078,2583.5,2582.9,3.2078]
[1739330060870,3.21360821,2583.5,2582.9,3.2078]
[1739330062568,3.21360821,2583.5,2582.9,5.1448]
[1739330062770,3.21360821,2583.5,2582.9,1.937]
[1739330063665,0.00580821,2583.5,2582.9,5.1448]
[1739330063872,0.00580821,2583.5,2583.2,3.2078]
[1739330064574,3.21360821,2583.5,2582.9,3.2078]
[1739330064778,3.21360821,2583.5,2583.0,1.942]
[1739330064964,3.21360821,2583.5,2582.9,3.2078]
[1739330065171,3.21360821,2583.5,2582.9,5.1498]
[1739330065372,0.00580821,2583.5,2583.4,3.2078]
[1739330065771,9.027,2584.4,2583.4,9.2078]
[1739330065772,4.4671,2584.4,2583.4,9.2078]
[1739330065973,3.2078,2584.9,2584.3,3.2078]
[1739330066274,3.2078,2584.9,2584.4,40.8]
[1739330066864,3.2078,2584.6,2584.4,0.00580821]
[1739330067075,3.2078,2584.6,2584.0,3.2078]
[1739330067076,4.2938,2584.5,2584.0,3.2078]
[1739330067970,0.00580821,2584.9,2584.4,3.2078]
[1739330068374,0.00580821,2584.9,2584.1,3.2078]
[1739330068677,3.2078,2584.6,2584.1,3.2078]
[1739330069474,3.21360821,2584.9,2584.1,3.2078]
[1739330069670,3.21360821,2584.9,2584.4,3.2078]
[1739330069875,0.00580821,2584.9,2584.4,3.2078]
[1739330070672,0.00580821,2584.9,2584.0,0.00580821]
[1739330070673,3.2078,2584.6,2584.0,0.00580821]
[1739330070968,0.00580821,2584.9,2584.0,0.00580821]
[1739330070969,3.2078,2584.7,2584.0,0.00580821]
[1739330071872,3.2078,2584.5,2584.0,0.00580821]
[1739330072578,3.2078,2584.8,2584.0,0.00580821]
[1739330072777,3.2078,2584.5,2584.0,0.00580821]
[1739330072973,3.2078,2584.8,2584.1,3.2078]
[1739330073474,3.2078,2584.8,2584.0,0.00580821]
[1739330073475,0.00580821,2584.9,2584.6,3.2078]
[1739330073675,0.00580821,2584.9,2584.3,3.2078]
[1739330074973,0.00580821,2584.9,2584.6,3.2078]
[1739330075281,0.00580821,2584.9,2584.7,6.4919]
[1739330075778,0.00580821,2584.9,2584.7,1.97]
[1739330076182,3.2078,2584.8,2584.7,1.97]
[1739330076872,0.00580821,2584.9,2584.7,1.97]
[1739330078684,0.00580821,2584.9,2584.8,40.8]
[1739330080495,0.00580821,2584.9,2584.8,44.0078]
[1739330081383,0.00580821,2584.9,2584.8,48.6348]
[1739330081695,3.2078,2585.5,2584.8,48.6348]
[1739330082791,0.00580821,2585.4,2584.8,48.6348]
[1739330083094,0.00580821,2585.4,2584.8,6.585]
[1739330083395,3.2078,2585.2,2584.5,4.3163]
[1739330083594,3.2078,2584.9,2584.5,6.2763]
[1739330083789,0.00580821,2585.4,2583.8,4.2249]
[1739330083790,3.2078,2584.6,2583.8,4.2249]
[1739330083986,3.2078,2584.6,2584.0,1.96780821]
[1739330084186,3.2078,2584.3,2584.0,0.00580821]
[1739330085196,9.2078,2584.3,2583.0,3.2078]
[1739330085493,3.2078,2583.5,2583.1,40.8]
[1739330086085,3.2078,2583.2,2582.4,23.77937945]
[1739330086298,3.2078,2583.2,2583.0,0.00580821]
[1739330088090,1.986,2583.1,2581.6,4.6246]
[1739330088293,3.2078,2582.4,2581.6,4.6246]
[1739330089284,3.2078,2582.4,2582.1,0.00580821]
[1739330089891,9.2078,2582.4,2581.3,6.5712]
[1739330090097,3.2078,2581.9,2581.3,6.5712]
[1739330091004,3.2078,2581.6,2581.3,6.5712]
[1739330091205,3.2078,2581.6,2581.3,6.57700821]
[1739330091394,3.2078,2581.6,2581.4,40.8]
[1739330094000,0.00580821,2581.9,2581.5,3.2078]
[1739330094197,0.00580821,2581.9,2581.8,3.2078]
[1739330094799,0.00580821,2581.9,2581.8,44.0078]
[1739330097591,3.2078,2582.7,2581.8,44.0078]
[1739330097796,4.1919,2582.9,2581.8,48.4206]
[1739330098304,3.2078,2582.6,2581.8,48.4206]
[1739330098500,4.1919,2582.9,2581.8,48.4206]
[1739330098805,3.2078,2582.4,2581.8,48.4206]
[1739330099299,3.2078,2582.4,2581.8,44.0078]
[1739330101000,0.00580821,2582.5,2582.2,3.2078]
[1739330101196,0.00580821,2582.5,2581.9,3.2078]
[1739330101406,3.2078,2582.3,2581.9,3.2078]
[1739330102404,3.2078,2582.3,2581.8,40.8]
[1739330102405,0.00580821,2582.5,2582.2,3.2078]
[1739330102597,0.00580821,2582.5,2581.8,40.8]
[1739330102598,0.00580821,2582.5,2581.8,44.0078]
[1739330103399,0.00580821,2582.5,2582.1,3.2078]
[1739330103799,0.00580821,2582.5,2582.2,4.6104]
[1739330104009,0.00580821,2582.5,2582.2,9.2414]
[1739330104607,0.00580821,2582.5,2582.4,3.2078]
[1739330104902,0.00580821,2582.5,2582.2,9.2414]
[1739330105299,0.00580821,2582.5,2582.4,3.2078]
[1739330106302,3.2078,2583.3,2582.4,3.2078]
[1739330106708,3.2078,2583.3,2582.8,3.2078]
[1739330107004,3.2078,2583.3,2582.9,40.8]
[1739330108505,3.2078,2583.3,2582.8,0.00580821]
[1739330108812,0.00580821,2583.4,2583.1,3.2078]
[1739330109013,0.00580821,2583.4,2583.2,40.8]
[1739330112110,1.93392,2585.9,2583.2,40.8]
[1739330112111,3.2078,2584.3,2583.3,6.3805]
[1739330112314,3.2078,2584.3,2583.5,3.2078]
[1739330112607,3.2078,2584.0,2583.3,6.3805]
[1739330113317,0.00580821,2583.9,2583.4,0.00580821]
[1739330115207,3.2078,2583.7,2583.4,0.00580821]
[1739330115407,3.2078,2583.7,2583.5,1.959]
[1739330115611,0.00580821,2583.9,2583.6,3.2078]
[1739330116109,0.00580821,2583.9,2583.7,9.0676]
[1739330116302,3.2078,2584.5,2583.7,9.0676]
[1739330116508,4.6178,2585.0,2584.4,3.2078]
[1739330116705,4.6178,2585.0,2584.4,44.0078]
[1739330117110,4.6178,2585.0,2584.4,40.8]
[1739330117317,4.62167216,2585.0,2584.4,40.8]
[1739330117512,3.2078,2584.8,2584.4,40.8]
[1739330118016,0.00387216,2585.0,2584.4,40.8]
[1739330118215,0.00387216,2585.0,2584.5,4.4863]
[1739330118613,3.2078,2584.8,2584.5,4.4863]
[1739330119215,3.2078,2584.8,2584.4,40.8]
[1739330119411,3.2078,2584.8,2584.3,3.2078]
[1739330119616,3.2078,2584.8,2584.2,1.963]
[1739330119812,3.2078,2584.8,2584.1,4.5057]
[1739330120015,3.2078,2584.8,2583.9,1.962]
[1739330120211,3.2078,2584.8,2584.0,3.2078]
[1739330120618,3.2078,2584.8,2584.1,40.8]
[1739330121111,7.6915,2584.9,2584.1,40.8]
[1739330121514,3.2078,2584.9,2584.1,40.8]
[1739330122317,3.2078,2584.9,2584.3,3.2078]
[1739330122520,0.00387216,2585.0,2584.3,3.2078]
[1739330122816,0.00387216,2585.0,2584.4,4.2975]
[1739330123020,0.00387216,2585.0,2584.6,3.2078]
[1739330123420,0.00387216,2585.0,2584.6,7.3985]
[1739330124322,0.00387216,2585.0,2584.6,4.1907]
[1739330125115,0.00387216,2585.0,2584.6,7.3985]
[1739330125823,0.00387216,2585.0,2584.6,4.1907]
[1739330126227,0.00387216,2585.0,2584.6,7.3985]
[1739330127320,0.00387216,2585.0,2584.5,1.949]
[1739330127721,3.21167216,2585.0,2584.2,4.5798]
[1739330127927,3.2078,2584.6,2584.3,1.947]
[1739330128731,3.2078,2584.6,2584.2,4.5798]
[1739330128929,3.2078,2584.6,2584.2,6.5248]
[1739330129233,3.2078,2584.6,2584.1,40.8]
[1739330129418,3.2078,2584.2,2584.1,40.8]
[1739330132222,3.2078,2584.2,2583.5,7.4016]
[1739330132419,3.2078,2583.9,2583.5,9.3406]
[1739330132620,3.2078,2583.9,2583.6,40.8]
[1739330133020,3.2078,2583.9,2583.4,0.00580821]
[1739330139033,3.2078,2583.9,2583.5,40.8]
[1739330140226,3.2078,2583.9,2583.6,4.4226]
[1739330140534,3.2078,2583.9,2583.6,8.7382]
[1739330140940,3.2078,2583.9,2583.7,1.923]
[1739330141239,3.2078,2584.2,2583.7,1.923]
[1739330144539,3.2078,2584.2,2583.8,40.8]
[1739330145639,4.52317216,2585.0,2584.1,3.2078]
[1739330145640,3.2078,2584.7,2584.1,3.2078]
[1739330145940,3.2078,2584.7,2584.2,4.4816]
[1739330146136,3.2078,2584.7,2584.3,6.2645]
[1739330147038,4.52317216,2585.0,2584.4,3.2078]
[1739330147343,0.00387216,2585.0,2584.4,3.2078]
[1739330148133,0.00387216,2585.0,2584.3,6.2645]
[1739330148134,0.00387216,2585.0,2584.7,3.2078]
[1739330149347,7.3989,2586.0,2584.7,3.2078]
[1739330149538,7.3989,2586.0,2585.4,3.2078]
[1739330150035,7.3989,2586.0,2585.5,40.8]
[1739330150638,7.3989,2586.0,2585.5,40.80580821]
[1739330150834,4.1911,2586.0,2585.5,40.80580821]
[1739330151638,7.8297,2586.4,2585.7,3.2078]
[1739330153044,3.2078,2586.1,2585.7,3.2078]
[1739330154743,3.2078,2586.1,2585.8,1.902]
[1739330154938,7.8297,2586.4,2585.8,1.902]
[1739330158448,7.8297,2586.4,2585.7,5.1048]
[1739330158951,7.8297,2586.4,2586.0,3.2078]
[1739330159149,4.6219,2586.4,2586.0,3.2078]
[1739330159952,4.6219,2586.4,2585.7,5.1048]
[1739330160152,7.8297,2586.4,2585.7,5.1048]
[1739330160451,7.8297,2586.4,2585.7,3.2078]
[1739330160754,7.8297,2586.4,2585.5,0.00580821]
[1739330160755,12.1119,2586.4,2585.5,3.21360821]
[1739330162045,12.1119,2586.4,2585.8,3.2078]
[1739330162046,7.8297,2586.4,2585.8,3.2078]
[1739330162241,7.8297,2586.4,2585.9,1.899]
[1739330162657,3.2078,2586.1,2585.7,1.898]
[1739330163946,4.6219,2586.4,2585.7,1.898]
[1739330163947,7.8297,2586.4,2585.8,3.2078]
[1739330166051,7.8297,2586.4,2585.7,1.898]
[1739330166454,3.2078,2586.1,2585.7,1.898]
[1739330167256,3.2078,2586.1,2585.5,5.10860821]
[1739330167447,4.6219,2586.4,2585.5,5.10860821]
[1739330168554,3.2078,2586.2,2585.5,5.10860821]
[1739330169048,3.2078,2585.8,2584.2,3.2078]
[1739330169356,3.2078,2584.9,2584.2,3.2078]
[1739330169560,3.2078,2585.2,2584.3,40.8]
[1739330170059,4.2405,2585.1,2584.4,1.925]
[1739330170259,0.00580821,2585.0,2584.5,0.00580821]
[1739330170461,0.00580821,2585.0,2584.5,3.21360821]
[1739330172161,0.00580821,2585.0,2584.9,3.2078]
[1739330172762,0.00580821,2585.0,2584.9,50.0078]
[1739330173862,0.00580821,2585.0,2584.9,44.0078]
[1739330174056,0.00580821,2585.0,2584.9,45.9258]
[1739330175258,0.00580821,2585.0,2584.9,44.0078]
[1739330177958,0.00580821,2585.0,2584.9,48.4306]
[1739330178360,0.00580821,2585.0,2584.9,50.3436]
[1739330179262,3.2078,2585.6,2584.9,56.3436]
[1739330179467,3.2078,2585.6,2584.9,54.6828]
[1739330180268,3.2078,2585.4,2584.9,47.1358]
[1739330181259,3.2078,2585.4,2584.9,50.3436]
[1739330182867,3.2078,2585.4,2585.0,1.909]
[1739330184459,3.2078,2585.7,2585.2,3.2078]
[1739330184661,4.4702,2585.8,2585.2,3.2078]
[1739330184861,3.2078,2586.0,2585.2,3.98154]
[1739330185056,3.2078,2586.0,2585.2,3.2078]
[1739330185671,3.2078,2586.0,2585.3,4.2561]
[1739330186862,3.2078,2586.0,2585.5,3.2078]
[1739330187066,3.2078,2586.0,2585.6,6.3512]
[1739330188071,3.2078,2586.3,2585.6,6.3512]
[1739330188370,3.2078,2586.3,2585.6,10.6929]
[1739330188971,3.2078,2586.3,2585.6,6.3512]
[1739330189864,3.2078,2586.3,2585.7,4.3588]
[1739330190665,3.2078,2586.3,2585.8,3.2078]
[1739330190871,3.2078,2586.3,2585.9,40.8]
[1739330192070,3.2078,2586.3,2585.8,0.00580821]
[1739330192669,3.2078,2586.3,2585.9,40.8]
[1739330195168,3.2078,2586.3,2585.8,0.00580821]
[1739330195671,3.2078,2586.3,2585.8,40.80580821]
[1739330196075,3.2078,2586.3,2585.8,0.00580821]
[1739330205475,0.00340724,2586.1,2585.8,0.00580821]
[1739330207179,0.00340724,2586.1,2585.8,4.44610821]
[1739330208976,0.00340724,2586.1,2585.9,3.2078]
[1739330209283,3.2078,2586.6,2585.9,3.2078]
[1739330209483,3.2078,2586.6,2586.2,3.2078]
[1739330209686,3.2078,2586.6,2586.3,1.895]
[1739330209883,3.2078,2586.6,2586.4,40.8]
[1739330210086,3.2078,2586.6,2586.4,45.3762]
[1739330210779,4.2108,2587.2,2586.5,3.2078]
[1739330211482,3.2078,2587.4,2586.5,3.2078]
[1739330211879,3.2078,2587.4,2586.6,5.09551215]
[1739330212085,3.2078,2587.4,2586.7,4.4601]
[1739330215283,3.2078,2587.4,2586.8,40.8]
[1739330215482,3.2078,2587.4,2586.9,1.895]
[1739330217082,3.2078,2587.4,2587.0,40.8]
[1739330217589,4.3151,2587.6,2587.0,40.8]
[1739330218286,4.3151,2587.6,2586.9,1.895]
[1739330218691,4.3151,2587.6,2587.2,3.2078]
[1739330220083,4.3151,2587.6,2587.1,0.00580821]
[1739330220585,3.2078,2587.7,2587.1,0.00580821]
[1739330222690,3.2078,2587.7,2587.2,40.8]
[1739330223081,4.3846,2587.9,2587.2,48.382]
[1739330223687,3.2078,2588.0,2587.2,48.382]
[1739330224085,4.5817,2588.1,2587.5,3.2078]
[1739330224286,4.5817,2588.1,2587.6,6.4912]
[1739330224589,3.2078,2588.3,2587.6,6.4912]
[1739330225688,3.2078,2588.3,2587.8,3.2078]
[1739330225881,3.2078,2588.3,2587.9,4.5294]
[1739330226087,7.7515,2588.6,2587.9,4.5294]
[1739330226690,7.7515,2588.6,2587.9,9.1368]
[1739330227288,4.5437,2588.6,2588.2,3.2078]
[1739330227492,3.2078,2588.9,2588.2,5.1008]
[1739330227688,3.2078,2588.9,2588.5,3.2078]
[1739330227888,3.2078,2588.9,2588.3,4.219]
[1739330228288,3.2078,2588.9,2588.4,40.8]
[1739330228588,3.2078,2588.6,2588.3,0.00579688]
[1739330230296,8.972,2588.8,2588.3,0.00579688]
[1739330230797,3.2078,2588.9,2588.3,4.33199688]
[1739330231091,12.1798,2589.5,2588.6,3.2078]
[1739330231291,12.1798,2589.5,2588.9,3.2078]
[1739330231498,12.1798,2589.5,2589.0,1.893]
[1739330231797,12.1798,2589.5,2589.0,6.1287]
[1739330232692,4.3527,2589.5,2589.2,3.2078]
[1739330232999,4.4542,2590.0,2589.2,3.2078]
[1739330233293,4.6133,2590.0,2589.5,3.2078]
[1739330233493,3.2078,2590.4,2589.8,3.2078]
[1739330233792,3.2078,2590.4,2589.6,10.6422]
[1739330233988,3.2078,2590.4,2589.8,0.00579688]
[1739330234192,3.2078,2590.1,2589.8,0.00579688]
[1739330236297,3.2078,2590.1,2589.6,1.893]
[1739330236498,3.2078,2590.1,2589.0,49.7276]
[1739330236499,3.2078,2589.7,2589.0,4.6193]
[1739330236701,3.2078,2589.4,2589.1,1.892]
[1739330239596,4.4293,2589.3,2589.0,0.00579688]
[1739330239796,3.2078,2589.1,2589.0,0.00579688]
[1739330244500,3.2078,2589.4,2589.0,0.00579688]
[1739330245107,3.2078,2589.4,2589.1,40.8]
[1739330245702,3.2078,2589.4,2589.0,0.00579688]
[1739330246001,3.2078,2589.1,2589.0,1.89779688]
[1739330246501,3.2078,2589.1,2589.0,0.00579688]
[1739330246720,9.2078,2589.1,2588.4,40.8]
[1739330246894,3.2078,2588.7,2588.4,40.8]
[1739330249811,3.2078,2589.1,2588.5,4.5104]
[1739330250311,3.2078,2589.4,2588.7,3.2078]
[1739330250605,3.2078,2589.4,2588.8,1.892]
[1739330250809,3.2078,2589.4,2588.8,6.365]
[1739330251599,3.2078,2589.4,2588.9,40.8]
[1739330253212,3.2078,2589.1,2588.8,1.891]
[1739330253611,4.6185,2589.0,2588.8,1.891]
[1739330254123,4.6185,2589.0,2588.5,4.5104]
[1739330254410,3.2078,2588.8,2588.5,4.5104]
[1739330254599,3.2078,2588.8,2588.5,45.3104]
[1739330258413,3.2078,2588.8,2588.3,20.24579688]
[1739330258615,3.2078,2588.5,2588.3,20.24579688]
[1739330258807,3.2078,2588.5,2588.4,40.8]
[1739330259505,3.2078,2588.5,2588.3,20.24579688]
[1739330259816,8.6823,2588.4,2588.3,20.24579688]
[1739330260311,15.4551,2588.4,2587.1,4.2287]
[1739330260504,3.2078,2587.7,2587.1,1.891]
[1739330260913,3.2078,2587.7,2587.0,20.232]
[1739330260914,3.2078,2587.4,2587.0,22.124]
[1739330261508,3.2078,2587.4,2587.0,20.232]
[1739330262016,7.7756,2587.4,2587.0,61.032]
[1739330262312,3.2078,2587.1,2586.9,0.00579688]
[1739330267214,4.5678,2587.4,2586.9,0.00579688]
[1739330267415,7.7756,2587.4,2586.9,0.00579688]
[1739330267912,7.7756,2587.4,2586.9,4.53589688]
[1739330268110,3.2078,2587.4,2586.9,6.42789688]
[1739330268620,3.2078,2587.4,2587.0,40.8]
[1739330269015,0.00579688,2587.5,2587.2,3.2078]
[1739330269315,0.00579688,2587.5,2587.3,4.328]
[1739330269620,0.00579688,2587.5,2587.3,8.5203]
[1739330274023,0.00579688,2587.5,2587.4,40.8]
[1739330276732,0.00579688,2587.5,2587.4,42.692]
[1739330276918,0.00579688,2587.5,2586.9,7.74369688]
[1739330277131,0.00579688,2587.5,2587.0,1.892]
[1739330277522,0.00579688,2587.5,2587.1,40.8]
[1739330279731,3.2078,2587.3,2587.1,40.8]
[1739330280322,9.2078,2587.3,2586.9,0.00579688]
[1739330280530,3.2078,2587.0,2586.9,0.00579688]
[1739330281234,9.2078,2587.0,2586.4,40.8]
[1739330281534,3.2078,2586.5,2586.0,1.892]
[1739330281833,3.2078,2586.5,2586.1,40.8]
[1739330282536,3.2078,2586.5,2586.0,0.00579688]
[1739330282736,3.2078,2586.2,2586.0,0.00579688]
[1739330287443,3.2078,2586.5,2586.1,1.892]
[1739330287744,3.2078,2586.5,2586.2,4.2318]
[1739330288244,7.6958,2586.8,2586.2,4.2318]
[1739330288445,3.2078,2586.5,2586.3,40.8]
[1739330288646,7.6958,2586.8,2586.3,40.8]
[1739330288945,3.2078,2586.8,2586.3,40.8]
[1739330292355,3.2078,2586.5,2586.1,1.892]
[1739330292553,3.2078,2586.2,2586.0,0.00579688]
[1739330301856,3.2078,2586.6,2586.0,0.00579688]
[1739330302157,3.2078,2586.6,2586.1,1.892]
[1739330302458,3.2078,2586.6,2586.2,4.6045]
[1739330302659,3.2078,2586.6,2586.2,8.9922]
[1739330303854,3.2078,2586.6,2586.2,9.30050999]
[1739330304058,3.2078,2586.6,2586.2,8.9922]
[1739330310762,8.8727,2587.3,2586.2,8.9922]
[1739330310763,3.2078,2586.9,2586.2,8.9922]
[1739330311763,3.2078,2587.0,2586.4,3.2078]
[1739330312769,4.3797,2587.3,2586.4,3.2078]
[1739330313064,3.2078,2587.4,2586.4,3.98118]
[1739330313261,3.2078,2587.4,2586.8,3.2078]
[1739330313459,3.2078,2587.4,2586.9,10.7603]
[1739330319359,4.2814,2587.3,2586.9,10.7603]
[1739330320466,4.2814,2587.3,2586.8,1.89]
[1739330320867,3.2078,2587.1,2586.7,3.51560059]
[1739330321068,3.2078,2587.1,2586.8,1.89]
[1739330322068,3.2078,2587.1,2586.8,11.1556]
[1739330323069,3.2078,2587.4,2586.8,11.1556]
[1739330323370,3.2078,2587.4,2586.9,4.356]
[1739330324673,3.2078,2587.4,2587.0,40.8]
[1739330327578,3.2078,2587.4,2587.0,44.0078]
[1739330327974,3.2078,2587.4,2587.0,44.32038634]
[1739330329676,4.3589,2587.8,2587.0,44.32038634]
[1739330330780,0.00579688,2587.7,2587.0,44.32038634]
[1739330331469,0.00579688,2587.7,2587.1,5.10196189]
[1739330331870,0.00579688,2587.7,2587.4,3.2078]
[1739330332073,0.00579688,2587.7,2587.5,51.3628]
[1739330334480,11.7918,2588.5,2587.6,0.77303]
[1739330334778,11.7918,2588.5,2587.6,4.3303]
[1739330335279,3.2078,2588.2,2587.6,4.3303]
[1739330335682,3.21359688,2588.2,2587.6,4.3303]
[1739330338888,3.21359688,2588.2,2587.5,49.4728]
[1739330339079,3.21359688,2588.2,2587.6,1.889]
[1739330341276,3.2078,2587.9,2587.6,1.889]
[1739330341475,3.2078,2587.9,2587.5,49.4728]
[1739330341681,3.2078,2587.9,2587.6,1.888]
[1739330341890,4.3681,2587.8,2587.6,1.888]
[1739330342587,3.21359688,2588.2,2587.6,1.888]
[1739330342885,3.21359688,2588.2,2587.7,4.2406]
[1739330343084,0.00579688,2588.2,2587.9,3.2078]
[1739330343884,0.00579688,2588.2,2588.1,0.77288]
[1739330344087,3.2078,2588.8,2588.1,0.77288]
[1739330344279,3.2078,2588.8,2588.2,1.888]
[1739330344484,3.2078,2588.8,2588.2,10.8774]
[1739330344686,3.2078,2588.8,2588.2,14.0852]
[1739330344893,3.2078,2589.1,2588.2,14.0852]
[1739330345087,4.4205,2589.3,2588.5,3.2078]
[1739330345290,0.00575909,2588.9,2588.5,3.2078]
[1739330345479,0.00575909,2588.9,2588.6,40.80579688]
[1739330345683,0.00575909,2588.9,2588.8,3.98047]
[1739330345987,0.00575909,2588.9,2588.8,5.86847]
[1739330346292,0.00575909,2588.9,2588.8,46.66847]
[1739330347085,3.2078,2589.7,2588.8,51.8958]
[1739330347282,3.2078,2589.7,2588.9,12.7052]
[1739330347491,11.5445,2590.0,2589.4,3.2078]
[1739330347681,11.5445,2590.0,2589.5,10.3755]
[1739330349893,11.5445,2590.0,2589.6,1.887]
[1739330350695,3.2078,2589.7,2589.6,1.887]